[Event "9e Open International de Porticcio"]
[Site "Porticcio, France"]
[Date "2024.07.01"]
[Round "4.4"]
[White "Batsiashvili, Nino"]
[Black "Roux, Baptiste"]
[Result "1-0"]
[TimeControl "1h30+30s/move"]
[WhiteElo "2450"]
[BlackElo "2352"]

1. d4 {[%clk 01:30:58]} {[%emt 00:37:25]} d5 {[%clk 01:29:09]} {[%emt
00:01:55]} 2. c4 {[%clk 01:31:24]} {[%emt 00:00:05]} dxc4 {[%clk 01:29:18]}
{[%emt 00:00:21]} 3. Nf3 {[%clk 01:31:50]} {[%emt 00:00:03]} Nf6 {[%clk
01:29:42]} {[%emt 00:00:06]} 4. e3 {[%clk 01:32:16]} {[%emt 00:00:04]} a6
{[%clk 01:29:08]} {[%emt 00:01:05]} 5. Bxc4 {[%clk 01:32:31]} {[%emt 00:00:14]}
b5 {[%clk 01:29:32]} {[%emt 00:00:05]} 6. Be2 {[%clk 01:31:12]} {[%emt
00:01:49]} Bb7 {[%clk 01:28:50]} {[%emt 00:01:13]} 7. O-O {[%clk 01:31:15]}
{[%emt 00:00:26]} e6 {[%clk 01:28:53]} {[%emt 00:00:27]} 8. a4 {[%clk
01:31:06]} {[%emt 00:00:40]} b4 {[%clk 01:28:53]} {[%emt 00:00:30]} 9. Nbd2
{[%clk 01:25:53]} {[%emt 00:05:43]} c5 {[%clk 01:24:31]} {[%emt 00:04:51]} 10.
Nc4 {[%clk 01:24:11]} {[%emt 00:02:11]} Nbd7 {[%clk 01:20:44]} {[%emt
00:04:17]} 11. a5 {[%clk 01:19:29]} {[%emt 00:05:12]} Be7 {[%clk 01:18:32]}
{[%emt 00:02:42]} 12. dxc5 {[%clk 01:17:30]} {[%emt 00:02:29]} Nxc5 {[%clk
01:15:29]} {[%emt 00:03:33]} 13. Bd2 {[%clk 01:16:28]} {[%emt 00:01:32]} Nd5
{[%clk 01:06:57]} {[%emt 00:09:03]} 14. Qe1 {[%clk 01:09:49]} {[%emt 00:07:09]}
Rb8 {[%clk 00:59:04]} {[%emt 00:08:23]} 15. Nd4 {[%clk 01:03:18]} {[%emt
00:07:00]} O-O {[%clk 00:54:44]} {[%emt 00:04:50]} 16. Rd1 {[%clk 01:03:35]}
{[%emt 00:00:13]} Qc7 {[%clk 00:49:55]} {[%emt 00:05:20]} 17. f3 {[%clk
00:58:35]} {[%emt 00:05:29]} Bf6 {[%clk 00:46:20]} {[%emt 00:04:06]} 18. Qg3
{[%clk 00:55:50]} {[%emt 00:03:14]} Qxg3 {[%clk 00:41:25]} {[%emt 00:05:25]} 19.
hxg3 {[%clk 00:56:16]} {[%emt 00:00:04]} Rfd8 {[%clk 00:36:12]} {[%emt
00:05:43]} 20. Bc1 {[%clk 00:55:13]} {[%emt 00:01:33]} e5 {[%clk 00:33:21]}
{[%emt 00:03:22]} 21. Nf5 {[%clk 00:54:28]} {[%emt 00:01:13]} b3 {[%clk
00:27:24]} {[%emt 00:06:29]} 22. e4 {[%clk 00:52:36]} {[%emt 00:02:21]} Nb4
{[%clk 00:27:00]} {[%emt 00:00:54]} 23. Be3 {[%clk 00:52:54]} {[%emt 00:00:11]}
Ne6 {[%clk 00:22:31]} {[%emt 00:05:00]} 24. Bb6 {[%clk 00:50:27]} {[%emt
00:02:57]} Rxd1 {[%clk 00:21:31]} {[%emt 00:01:29]} 25. Bxd1 {[%clk 00:47:55]}
{[%emt 00:03:02]} Nc2 {[%clk 00:14:59]} {[%emt 00:07:02]} 26. Bxc2 {[%clk
00:45:55]} {[%emt 00:02:31]} bxc2 {[%clk 00:15:27]} {[%emt 00:00:02]} 27. Rc1
{[%clk 00:46:24]} Bc6 {[%clk 00:12:48]} {[%emt 00:03:10]} 28. Rxc2 {[%clk
00:46:20]} {[%emt 00:00:34]} Ba4 {[%clk 00:13:16]} {[%emt 00:00:02]} 29. Rd2
{[%clk 00:44:38]} {[%emt 00:02:11]} Rc8 {[%clk 00:13:15]} {[%emt 00:00:31]} 30.
Nfd6 {[%clk 00:43:00]} {[%emt 00:02:08]} Rc6 {[%clk 00:13:14]} {[%emt
00:00:32]} 31. Rd3 {[%clk 00:41:41]} {[%emt 00:01:47]} Be7 {[%clk 00:12:40]}
{[%emt 00:01:05]} 32. b3 {[%clk 00:39:19]} {[%emt 00:02:53]} Bxd6 {[%clk
00:07:35]} {[%emt 00:05:35]} 33. Nxd6 {[%clk 00:37:35]} {[%emt 00:02:13]} Nd4
{[%clk 00:07:00]} {[%emt 00:01:06]} 34. bxa4 {[%clk 00:31:14]} {[%emt
00:06:51]} Rxd6 {[%clk 00:07:23]} {[%emt 00:00:07]} 35. Kf2 {[%clk 00:31:29]}
{[%emt 00:00:13]} f6 {[%clk 00:06:02]} {[%emt 00:01:53]} 36. Bxd4 {[%clk
00:31:35]} {[%emt 00:00:23]} exd4 {[%clk 00:06:01]} {[%emt 00:00:32]} 37. Ke2
{[%clk 00:31:57]} {[%emt 00:00:08]} Kf7 {[%clk 00:05:09]} {[%emt 00:01:21]} 38.
Rb3 {[%clk 00:32:19]} {[%emt 00:00:08]} Rc6 {[%clk 00:04:22]} {[%emt 00:01:17]}
39. Kd3 {[%clk 00:31:51]} {[%emt 00:00:58]} Rc5 {[%clk 00:04:35]} {[%emt
00:00:18]} 40. Kxd4 {[%clk 00:31:10]} {[%emt 00:01:11]} Rxa5 {[%clk 00:05:03]}
{[%emt 00:00:02]} 41. Rb4 {[%clk 00:31:34]} {[%emt 00:00:05]} Kg6 {[%clk
00:03:20]} {[%emt 00:02:14]} 42. g4 {[%clk 00:30:59]} {[%emt 00:01:05]} h5
{[%clk 00:03:07]} {[%emt 00:00:43]} 43. gxh5+ {[%clk 00:31:15]} {[%emt
00:00:14]} Kxh5 {[%clk 00:03:32]} {[%emt 00:00:06]} 44. Rc4 {[%clk 00:31:22]}
{[%emt 00:00:23]} Kh4 {[%clk 00:02:32]} {[%emt 00:01:30]} 45. g4 {[%clk
00:27:15]} {[%emt 00:04:37]} Kg3 {[%clk 00:01:47]} {[%emt 00:01:16]} 46. Ke3
{[%clk 00:27:43]} {[%emt 00:00:01]} Kg2 {[%clk 00:01:37]} {[%emt 00:00:41]} 47.
Kf4 {[%clk 00:22:22]} {[%emt 00:05:50]} Kh3 {[%clk 00:01:42]} {[%emt 00:00:25]}
48. Rd4 {[%clk 00:21:32]} {[%emt 00:01:19]} Rc5 {[%clk 00:00:53]} {[%emt
00:01:20]} 49. Rd5 {[%clk 00:21:48]} {[%emt 00:00:14]} Rc3 {[%clk 00:00:51]}
{[%emt 00:00:32]} 50. g5 {[%clk 00:22:03]} {[%emt 00:00:15]} Kg2 {[%clk
00:01:04]} {[%emt 00:00:17]} 51. Rd2+ {[%clk 00:22:27]} {[%emt 00:00:06]} Kh3
{[%clk 00:01:28]} {[%emt 00:00:06]} 52. gxf6 {[%clk 00:22:36]} {[%emt
00:00:22]} gxf6 {[%clk 00:01:53]} {[%emt 00:00:05]} 53. Rd6 {[%clk 00:22:57]}
{[%emt 00:00:09]} Kg2 {[%clk 00:02:06]} {[%emt 00:00:17]} 54. Rxf6 {[%clk
00:23:14]} {[%emt 00:00:13]} Rxf3+ {[%clk 00:02:32]} {[%emt 00:00:04]} 55. Ke5
{[%clk 00:23:40]} {[%emt 00:00:04]} 1-0

[Event "9e Open International de Porticcio"]
[Site "Porticcio, France"]
[Date "2024.07.01"]
[Round "4.5"]
[White "Yankelevich, Lev"]
[Black "Malassagne, Raphael"]
[Result "1-0"]
[TimeControl "1h30+30s/move"]
[WhiteElo "2416"]
[BlackElo "2259"]

1. d4 {[%clk 01:30:57]} {[%emt 00:00:01]} Nf6 {[%clk 01:30:54]} {[%emt
00:00:07]} 2. c4 {[%clk 01:31:17]} {[%emt 00:00:10]} c5 {[%clk 01:31:18]}
{[%emt 00:00:06]} 3. d5 {[%clk 01:30:36]} {[%emt 00:01:11]} b5 {[%clk
01:31:41]} {[%emt 00:00:07]} 4. cxb5 {[%clk 01:30:23]} {[%emt 00:00:41]} a6
{[%clk 01:32:01]} {[%emt 00:00:11]} 5. e3 {[%clk 01:30:47]} {[%emt 00:00:06]}
Bb7 {[%clk 01:31:44]} {[%emt 00:00:47]} 6. Nc3 {[%clk 01:30:49]} {[%emt
00:00:27]} Qa5 {[%clk 01:31:58]} {[%emt 00:00:16]} 7. Bd2 {[%clk 01:22:29]}
{[%emt 00:08:51]} axb5 {[%clk 01:31:00]} {[%emt 00:01:28]} 8. Bxb5 {[%clk
01:20:05]} {[%emt 00:02:53]} Qb6 {[%clk 01:31:25]} {[%emt 00:00:06]} 9. Nf3
{[%clk 01:10:09]} {[%emt 00:10:25]} Nxd5 {[%clk 01:23:05]} {[%emt 00:08:50]} 10.
a4 {[%clk 01:09:39]} {[%emt 00:01:00]} e6 {[%clk 01:09:38]} {[%emt 00:13:57]}
11. Ne5 {[%clk 00:59:04]} {[%emt 00:11:05]} Be7 {[%clk 01:02:54]} {[%emt
00:07:14]} 12. O-O {[%clk 00:57:01]} {[%emt 00:02:33]} O-O {[%clk 00:53:44]}
{[%emt 00:09:40]} 13. Qe2 {[%clk 00:51:09]} {[%emt 00:06:21]} Qc7 {[%clk
00:33:57]} {[%emt 00:20:17]} 14. Nxd5 {[%clk 00:48:23]} {[%emt 00:03:16]} exd5
{[%clk 00:32:31]} {[%emt 00:01:57]} 15. Nd3 {[%clk 00:44:29]} {[%emt 00:04:23]}
Bc6 {[%clk 00:29:09]} {[%emt 00:03:53]} 16. Bc3 {[%clk 00:41:08]} {[%emt
00:03:51]} Bd6 {[%clk 00:26:05]} {[%emt 00:03:34]} 17. Qh5 {[%clk 00:36:05]}
{[%emt 00:05:33]} Na6 {[%clk 00:21:49]} {[%emt 00:04:46]} 18. Ne5 {[%clk
00:33:38]} {[%emt 00:02:57]} Bxe5 {[%clk 00:17:11]} {[%emt 00:05:09]} 19. Bxe5
{[%clk 00:32:19]} {[%emt 00:01:49]} d6 {[%clk 00:17:35]} {[%emt 00:00:06]} 20.
Bc3 {[%clk 00:26:46]} {[%emt 00:06:04]} Qd7 {[%clk 00:15:44]} {[%emt 00:02:21]}
21. Qg5 {[%clk 00:23:28]} {[%emt 00:03:47]} f6 {[%clk 00:15:13]} {[%emt
00:01:01]} 22. Qxd5+ {[%clk 00:23:50]} {[%emt 00:00:08]} Bxd5 {[%clk 00:15:27]}
{[%emt 00:00:17]} 23. Bxd7 {[%clk 00:24:17]} {[%emt 00:00:02]} Rfd8 {[%clk
00:14:32]} {[%emt 00:01:25]} 24. Bb5 {[%clk 00:22:45]} {[%emt 00:02:03]} Nc7
{[%clk 00:15:01]} {[%emt 00:00:01]} 25. Be2 {[%clk 00:22:37]} {[%emt 00:00:37]}
Bb3 {[%clk 00:15:27]} {[%emt 00:00:05]} 26. a5 {[%clk 00:22:07]} {[%emt
00:01:00]} d5 {[%clk 00:15:53]} {[%emt 00:00:05]} 27. Ra3 {[%clk 00:21:33]}
{[%emt 00:01:04]} c4 {[%clk 00:16:14]} {[%emt 00:00:08]} 28. Rc1 {[%clk
00:18:40]} {[%emt 00:03:23]} Kf7 {[%clk 00:15:20]} {[%emt 00:01:24]} 29. Bd4
{[%clk 00:17:31]} {[%emt 00:01:40]} Ne6 {[%clk 00:14:43]} {[%emt 00:01:07]} 30.
Bb6 {[%clk 00:17:40]} {[%emt 00:00:21]} Rd6 {[%clk 00:15:09]} {[%emt 00:00:04]}
31. Bd1 {[%clk 00:15:16]} {[%emt 00:02:54]} Bxd1 {[%clk 00:13:47]} {[%emt
00:01:52]} 32. Rxd1 {[%clk 00:15:44]} {[%emt 00:00:02]} f5 {[%clk 00:14:05]}
{[%emt 00:00:12]} 33. Rc3 {[%clk 00:15:23]} {[%emt 00:00:50]} Rc8 {[%clk
00:13:41]} {[%emt 00:00:54]} 34. f3 {[%clk 00:14:03]} {[%emt 00:01:51]} f4
{[%clk 00:13:19]} {[%emt 00:00:52]} 35. e4 {[%clk 00:13:17]} {[%emt 00:01:15]}
d4 {[%clk 00:13:36]} {[%emt 00:00:13]} 36. Ra3 {[%clk 00:13:35]} {[%emt
00:00:12]} Ra8 {[%clk 00:12:46]} {[%emt 00:01:20]} 37. Raa1 {[%clk 00:13:11]}
{[%emt 00:00:54]} d3 {[%clk 00:12:36]} {[%emt 00:00:40]} 38. Rac1 {[%clk
00:13:21]} {[%emt 00:00:21]} Rc8 {[%clk 00:11:49]} {[%emt 00:01:16]} 39. Rc3
{[%clk 00:12:12]} {[%emt 00:01:39]} Nd4 {[%clk 00:09:32]} {[%emt 00:02:47]} 40.
Bxd4 {[%clk 00:11:34]} {[%emt 00:01:08]} Rxd4 {[%clk 00:09:56]} {[%emt
00:00:07]} 41. b3 {[%clk 00:12:01]} {[%emt 00:00:03]} Ra8 {[%clk 00:10:04]}
{[%emt 00:00:22]} 42. Rxc4 {[%clk 00:11:32]} {[%emt 00:00:59]} Rxc4 {[%clk
00:10:29]} {[%emt 00:00:04]} 43. bxc4 {[%clk 00:12:01]} {[%emt 00:00:02]} Rxa5
{[%clk 00:10:54]} {[%emt 00:00:05]} 44. Rxd3 {[%clk 00:12:29]} {[%emt
00:00:02]} Ra1+ {[%clk 00:11:17]} {[%emt 00:00:06]} 45. Kf2 {[%clk 00:12:40]}
{[%emt 00:00:19]} Ra2+ {[%clk 00:11:20]} {[%emt 00:00:27]} 46. Kf1 {[%clk
00:12:19]} {[%emt 00:00:52]} Ke6 {[%clk 00:11:39]} {[%emt 00:00:11]} 47. c5
{[%clk 00:10:07]} {[%emt 00:02:42]} Rc2 {[%clk 00:11:56]} {[%emt 00:00:13]} 48.
Rd5 {[%clk 00:08:41]} {[%emt 00:01:55]} g6 {[%clk 00:12:00]} {[%emt 00:00:26]}
49. h4 {[%clk 00:09:03]} {[%emt 00:00:08]} Rc1+ {[%clk 00:12:15]} {[%emt
00:00:16]} 50. Ke2 {[%clk 00:09:30]} {[%emt 00:00:03]} 1-0

[Event "9e Open International de Porticcio"]
[Site "Porticcio, France"]
[Date "2024.07.01"]
[Round "4.6"]
[White "Terrieux, Kevin"]
[Black "Pak, Alexander"]
[Result "1/2-1/2"]
[TimeControl "1h30+30s/move"]
[WhiteElo "2408"]
[BlackElo "2200"]

1. d4 {[%clk 01:27:38]} {[%emt 00:03:21]} d5 {[%clk 01:30:52]} {[%emt
00:00:08]} 2. c4 {[%clk 01:28:00]} {[%emt 00:00:08]} c6 {[%clk 01:31:18]}
{[%emt 00:00:05]} 3. cxd5 {[%clk 01:28:25]} {[%emt 00:00:05]} cxd5 {[%clk
01:31:43]} {[%emt 00:00:04]} 4. Bg5 {[%clk 01:28:49]} {[%emt 00:00:06]} f6
{[%clk 01:31:30]} {[%emt 00:00:43]} 5. Bd2 {[%clk 01:29:07]} {[%emt 00:00:12]}
e5 {[%clk 01:31:12]} {[%emt 00:00:49]} 6. e4 {[%clk 01:28:43]} {[%emt
00:00:54]} Nc6 {[%clk 01:22:50]} {[%emt 00:08:52]} 7. dxe5 {[%clk 01:22:51]}
{[%emt 00:06:22]} dxe4 {[%clk 01:11:08]} {[%emt 00:12:12]} 8. Nc3 {[%clk
01:16:09]} {[%emt 00:07:12]} Nxe5 {[%clk 01:05:08]} {[%emt 00:06:31]} 9. Qa4+
{[%clk 01:12:19]} {[%emt 00:04:20]} Bd7 {[%clk 01:04:07]} {[%emt 00:01:31]} 10.
Qxe4 {[%clk 01:10:55]} {[%emt 00:01:53]} Bc6 {[%clk 01:02:21]} {[%emt
00:02:16]} 11. Qe2 {[%clk 01:01:57]} {[%emt 00:09:28]} Qe7 {[%clk 00:56:11]}
{[%emt 00:06:41]} 12. O-O-O {[%clk 01:00:09]} {[%emt 00:02:16]} O-O-O {[%clk
00:55:55]} {[%emt 00:00:46]} 13. Be3 {[%clk 00:55:01]} {[%emt 00:05:38]} Kb8
{[%clk 00:52:20]} {[%emt 00:04:05]} 14. Rxd8+ {[%clk 00:48:43]} {[%emt
00:06:48]} Qxd8 {[%clk 00:52:41]} {[%emt 00:00:08]} 15. f4 {[%clk 00:49:08]}
{[%emt 00:00:06]} Nd7 {[%clk 00:50:11]} {[%emt 00:03:00]} 16. Nf3 {[%clk
00:48:50]} {[%emt 00:00:47]} Bc5 {[%clk 00:45:08]} {[%emt 00:05:33]} 17. Nd4
{[%clk 00:45:15]} {[%emt 00:04:06]} Bxd4 {[%clk 00:45:35]} {[%emt 00:00:03]} 18.
Bxd4 {[%clk 00:45:39]} {[%emt 00:00:06]} Nh6 {[%clk 00:44:26]} {[%emt
00:01:38]} 19. Qf2 {[%clk 00:43:37]} {[%emt 00:02:33]} b6 {[%clk 00:34:42]}
{[%emt 00:10:14]} 20. Bd3 {[%clk 00:40:28]} {[%emt 00:03:39]} Nc5 {[%clk
00:24:56]} {[%emt 00:10:16]} 21. Be2 {[%clk 00:14:17]} {[%emt 00:26:41]} Ng4
{[%clk 00:19:52]} {[%emt 00:05:34]} 22. Qg1 {[%clk 00:14:04]} {[%emt 00:00:43]}
Ne6 {[%clk 00:18:45]} {[%emt 00:01:38]} 23. Bxg4 {[%clk 00:05:30]} {[%emt
00:09:03]} Nxd4 {[%clk 00:18:53]} {[%emt 00:00:22]} 24. Qf2 {[%clk 00:05:29]}
{[%emt 00:00:31]} h5 {[%clk 00:14:45]} {[%emt 00:04:37]} 25. Rd1 {[%clk
00:04:20]} {[%emt 00:01:40]} hxg4 {[%clk 00:14:52]} {[%emt 00:00:23]} 26. Rxd4
{[%clk 00:04:48]} {[%emt 00:00:02]} Qc7 {[%clk 00:11:33]} {[%emt 00:03:48]} 27.
g3 {[%clk 00:04:59]} {[%emt 00:00:19]} Kb7 {[%clk 00:08:35]} {[%emt 00:03:28]}
28. Rd2 {[%clk 00:05:24]} {[%emt 00:00:06]} Re8 {[%clk 00:08:01]} {[%emt
00:01:03]} 29. Re2 {[%clk 00:05:38]} {[%emt 00:00:16]} Rxe2 {[%clk 00:06:51]}
{[%emt 00:01:40]} 30. Qxe2 {[%clk 00:05:44]} {[%emt 00:00:23]} Bf3 {[%clk
00:07:06]} {[%emt 00:00:15]} 31. Qd3 {[%clk 00:05:30]} {[%emt 00:00:44]} Qc5
{[%clk 00:05:42]} {[%emt 00:01:54]} 32. Qd7+ {[%clk 00:05:35]} {[%emt
00:00:26]} Ka6 {[%clk 00:05:41]} {[%emt 00:00:30]} 33. Qa4+ {[%clk 00:05:24]}
{[%emt 00:00:41]} Kb7 {[%clk 00:06:03]} {[%emt 00:00:08]} 34. Qd7+ {[%clk
00:05:41]} {[%emt 00:00:13]} Ka6 {[%clk 00:06:25]} {[%emt 00:00:08]} 35. Qa4+
{[%clk 00:06:01]} {[%emt 00:00:11]} Kb7 {[%clk 00:06:47]} {[%emt 00:00:07]} 36.
Qd7+ {[%emt 00:00:15]} 1/2-1/2

[Event "9e Open International de Porticcio"]
[Site "Porticcio, France"]
[Date "2024.07.01"]
[Round "4.7"]
[White "De Balmann, Marc"]
[Black "Lagarde, Maxime"]
[Result "0-1"]
[TimeControl "1h30+30s/move"]
[WhiteElo "2194"]
[BlackElo "2604"]

1. d4 {[%clk 01:30:57]} {[%emt 00:00:02]} Nf6 {[%clk 01:30:39]} {[%emt
00:00:21]} 2. c4 {[%clk 01:31:22]} {[%emt 00:00:06]} g6 {[%clk 01:30:57]}
{[%emt 00:00:12]} 3. Nc3 {[%clk 01:31:45]} {[%emt 00:00:07]} Bg7 {[%clk
01:31:23]} {[%emt 00:00:04]} 4. e4 {[%clk 01:32:10]} {[%emt 00:00:05]} d6
{[%clk 01:31:49]} {[%emt 00:00:04]} 5. Nf3 {[%clk 01:32:32]} {[%emt 00:00:07]}
O-O {[%clk 01:32:12]} {[%emt 00:00:07]} 6. Be2 {[%clk 01:32:57]} {[%emt
00:00:05]} Nbd7 {[%emt 00:00:45]} 7. O-O {[%clk 01:33:15]} {[%emt 00:00:07]} e5
{[%clk 01:32:29]} {[%emt 00:00:05]} 8. Be3 {[%clk 01:33:34]} {[%emt 00:00:10]}
c6 {[%clk 01:32:48]} {[%emt 00:00:11]} 9. d5 {[%clk 01:32:48]} {[%emt
00:01:16]} Ng4 {[%clk 01:32:56]} {[%emt 00:00:22]} 10. Bg5 {[%clk 01:31:49]}
{[%emt 00:01:29]} f6 {[%clk 01:33:19]} {[%emt 00:00:08]} 11. Bd2 {[%clk
01:30:38]} {[%emt 00:01:41]} c5 {[%clk 01:30:12]} {[%emt 00:03:37]} 12. Qc1
{[%clk 01:25:20]} {[%emt 00:05:47]} f5 {[%clk 01:30:19]} {[%emt 00:00:22]} 13.
Ng5 {[%clk 01:23:02]} {[%emt 00:02:48]} Ndf6 {[%clk 01:29:53]} {[%emt
00:00:56]} 14. exf5 {[%clk 01:14:47]} {[%emt 00:08:46]} gxf5 {[%clk 01:29:48]}
{[%emt 00:00:35]} 15. f3 {[%clk 01:14:29]} {[%emt 00:00:48]} Nh6 {[%clk
01:29:08]} {[%emt 00:01:10]} 16. Bd3 {[%clk 01:11:59]} {[%emt 00:03:00]} f4
{[%clk 01:22:55]} {[%emt 00:06:42]} 17. Ne6 {[%clk 00:59:25]} {[%emt 00:13:04]}
Bxe6 {[%clk 01:19:56]} {[%emt 00:03:29]} 18. dxe6 {[%clk 00:59:21]} {[%emt
00:00:34]} Re8 {[%clk 01:19:19]} {[%emt 00:01:07]} 19. g4 {[%clk 00:51:25]}
{[%emt 00:08:26]} Rxe6 {[%clk 01:19:37]} {[%emt 00:00:12]} 20. Qc2 {[%clk
00:48:15]} {[%emt 00:03:40]} Nf7 {[%clk 01:18:47]} {[%emt 00:01:20]} 21. Be1
{[%clk 00:38:34]} {[%emt 00:10:11]} h6 {[%clk 01:03:54]} {[%emt 00:15:24]} 22.
Rd1 {[%clk 00:37:41]} {[%emt 00:01:23]} a6 {[%clk 00:57:17]} {[%emt 00:07:08]}
23. a4 {[%clk 00:36:30]} {[%emt 00:01:39]} Qf8 {[%clk 00:56:37]} {[%emt
00:01:10]} 24. Qg2 {[%clk 00:34:12]} {[%emt 00:02:48]} Nd8 {[%clk 00:55:18]}
{[%emt 00:01:50]} 25. Nd5 {[%clk 00:30:51]} {[%emt 00:03:51]} Nxd5 {[%clk
00:54:41]} {[%emt 00:01:07]} 26. cxd5 {[%clk 00:31:18]} {[%emt 00:00:02]} Re7
{[%clk 00:54:52]} {[%emt 00:00:19]} 27. Qe2 {[%clk 00:28:29]} {[%emt 00:03:19]}
e4 {[%clk 00:53:50]} {[%emt 00:01:33]} 28. Bxe4 {[%clk 00:27:52]} {[%emt
00:01:07]} Nf7 {[%clk 00:54:00]} {[%emt 00:00:20]} 29. Bh4 {[%clk 00:25:56]}
{[%emt 00:02:26]} Ng5 {[%clk 00:53:48]} {[%emt 00:00:42]} 30. Kh1 {[%clk
00:21:07]} {[%emt 00:05:19]} Rae8 {[%clk 00:48:36]} {[%emt 00:05:42]} 31. Bxg5
{[%clk 00:19:31]} {[%emt 00:02:06]} hxg5 {[%clk 00:48:53]} {[%emt 00:00:13]} 32.
h4 {[%clk 00:19:26]} {[%emt 00:00:35]} gxh4 {[%clk 00:48:03]} {[%emt 00:01:20]}
33. g5 {[%clk 00:19:55]} {[%emt 00:00:02]} Qf5 {[%clk 00:47:10]} {[%emt
00:01:22]} 34. Rde1 {[%clk 00:14:23]} {[%emt 00:06:02]} Qh3+ {[%clk 00:43:57]}
{[%emt 00:03:43]} 35. Qh2 {[%clk 00:14:51]} {[%emt 00:00:02]} Qxh2+ {[%clk
00:43:24]} {[%emt 00:01:04]} 36. Kxh2 {[%clk 00:15:20]} {[%emt 00:00:01]} Bxb2
{[%clk 00:43:27]} {[%emt 00:00:26]} 37. Rb1 {[%clk 00:15:27]} {[%emt 00:00:23]}
Be5 {[%clk 00:43:10]} {[%emt 00:00:47]} 38. Rfc1 {[%clk 00:14:16]} {[%emt
00:01:41]} Rg7 {[%clk 00:41:49]} {[%emt 00:01:51]} 39. g6 {[%clk 00:14:38]}
{[%emt 00:00:08]} Rc7 {[%clk 00:41:57]} {[%emt 00:00:21]} 40. Rc4 {[%clk
00:14:47]} {[%emt 00:00:21]} Kg7 {[%clk 00:42:04]} {[%emt 00:00:23]} 41. Kh3
{[%clk 00:15:06]} {[%emt 00:00:12]} Rh8 {[%clk 00:42:09]} {[%emt 00:00:24]} 42.
a5 {[%clk 00:13:38]} {[%emt 00:01:58]} Kf6 {[%clk 00:42:03]} {[%emt 00:00:37]}
43. Rg1 {[%clk 00:12:12]} {[%emt 00:01:56]} Rb8 {[%clk 00:39:55]} {[%emt
00:02:37]} 44. Rb1 {[%clk 00:11:01]} {[%emt 00:01:41]} Bd4 {[%clk 00:38:42]}
{[%emt 00:01:43]} 45. Kg4 {[%clk 00:10:33]} {[%emt 00:00:58]} Ke5 {[%clk
00:36:37]} {[%emt 00:02:35]} 46. Rb6 {[%clk 00:07:36]} {[%emt 00:03:27]} Rh8
{[%clk 00:34:47]} {[%emt 00:02:19]} 47. Kh3 {[%clk 00:07:18]} {[%emt 00:00:49]}
Rh5 {[%clk 00:35:04]} {[%emt 00:00:13]} 48. Rb1 {[%clk 00:07:10]} {[%emt
00:00:38]} Rg5 {[%clk 00:34:57]} {[%emt 00:00:37]} 49. Rd1 {[%clk 00:05:14]}
{[%emt 00:02:26]} Rg3+ {[%clk 00:33:48]} {[%emt 00:01:39]} 50. Kh2 {[%clk
00:05:13]} {[%emt 00:00:30]} Rg7 {[%clk 00:33:35]} {[%emt 00:00:43]} 51. Rc2
{[%clk 00:05:05]} {[%emt 00:00:39]} R7xg6 {[%clk 00:30:10]} {[%emt 00:03:56]}
52. Bxg6 {[%clk 00:05:32]} {[%emt 00:00:03]} Rxg6 {[%clk 00:30:34]} {[%emt
00:00:06]} 53. Rb1 {[%clk 00:05:43]} {[%emt 00:00:18]} Kxd5 {[%clk 00:30:31]}
{[%emt 00:00:34]} 54. Rxb7 {[%clk 00:06:02]} {[%emt 00:00:12]} c4 {[%clk
00:30:17]} {[%emt 00:00:44]} 55. Kh3 {[%clk 00:05:14]} {[%emt 00:01:18]} c3
{[%clk 00:28:50]} {[%emt 00:01:57]} 56. Rc7 {[%clk 00:04:27]} {[%emt 00:01:16]}
Rg3+ {[%clk 00:27:48]} {[%emt 00:01:32]} 57. Kxh4 {[%clk 00:04:49]} {[%emt
00:00:07]} Rxf3 {[%clk 00:28:10]} {[%emt 00:00:09]} 58. Kg4 {[%clk 00:05:03]}
{[%emt 00:00:16]} Ke4 {[%clk 00:28:09]} {[%emt 00:00:31]} 59. Ra2 {[%clk
00:01:50]} {[%emt 00:03:43]} Rg3 {[%clk 00:28:03]} {[%emt 00:00:36]} 60. Kh5
{[%clk 00:01:53]} {[%emt 00:00:26]} f3 {[%clk 00:28:04]} {[%emt 00:00:30]} 61.
Rf7 {[%clk 00:01:36]} {[%emt 00:00:46]} f2 {[%clk 00:27:48]} {[%emt 00:00:46]}
0-1

[Event "9e Open International de Porticcio"]
[Site "Porticcio, France"]
[Date "2024.07.01"]
[Round "4.8"]
[White "Clarke, Brandon G I"]
[Black "Pieri, Pierre-Louis"]
[Result "1-0"]
[TimeControl "1h30+30s/move"]
[WhiteElo "2498"]
[BlackElo "2190"]

1. e4 {[%clk 01:30:57]} {[%emt 00:00:03]} e5 {[%clk 01:30:49]} {[%emt
00:00:12]} 2. Nf3 {[%clk 01:31:18]} {[%emt 00:00:08]} Nc6 {[%clk 01:31:12]}
{[%emt 00:00:07]} 3. d4 {[%clk 01:31:29]} {[%emt 00:00:20]} exd4 {[%clk
01:31:35]} {[%emt 00:00:06]} 4. Nxd4 {[%clk 01:31:55]} {[%emt 00:00:05]} Nf6
{[%clk 01:31:57]} {[%emt 00:00:07]} 5. Nxc6 {[%clk 01:32:19]} {[%emt 00:00:06]}
bxc6 {[%clk 01:32:20]} {[%emt 00:00:07]} 6. e5 {[%clk 01:32:44]} {[%emt
00:00:05]} Qe7 {[%clk 01:32:38]} {[%emt 00:00:12]} 7. Qe2 {[%clk 01:33:12]}
{[%emt 00:00:03]} Nd5 {[%clk 01:32:45]} {[%emt 00:00:23]} 8. h4 {[%clk
01:33:34]} {[%emt 00:00:08]} Qe6 {[%clk 01:32:23]} {[%emt 00:00:52]} 9. Nd2
{[%clk 01:33:48]} {[%emt 00:00:15]} Nb4 {[%clk 01:26:24]} {[%emt 00:06:29]} 10.
Nf3 {[%clk 01:17:06]} {[%emt 00:17:11]} Ba6 {[%clk 01:25:20]} {[%emt 00:01:34]}
11. c4 {[%clk 01:15:16]} {[%emt 00:02:20]} c5 {[%clk 01:12:21]} {[%emt
00:13:30]} 12. Ng5 {[%clk 00:59:50]} {[%emt 00:15:55]} Qf5 {[%clk 01:06:54]}
{[%emt 00:05:57]} 13. g4 {[%clk 00:55:36]} {[%emt 00:04:45]} Qg6 {[%clk
00:56:41]} {[%emt 00:10:43]} 14. h5 {[%clk 00:50:52]} {[%emt 00:05:14]} Nc2+
{[%clk 00:53:11]} {[%emt 00:04:00]} 15. Kd1 {[%clk 00:46:34]} {[%emt 00:04:48]}
Qc6 {[%clk 00:53:29]} {[%emt 00:00:13]} 16. Kxc2 {[%clk 00:39:45]} {[%emt
00:07:18]} Qxh1 {[%clk 00:53:01]} {[%emt 00:00:57]} 17. e6 {[%clk 00:37:01]}
{[%emt 00:03:15]} dxe6 {[%clk 00:44:26]} {[%emt 00:09:05]} 18. Nxe6 {[%clk
00:36:59]} {[%emt 00:00:31]} Kd7 {[%clk 00:44:26]} {[%emt 00:00:30]} 19. Qd3+
{[%clk 00:32:16]} {[%emt 00:05:12]} Kc6 {[%clk 00:31:17]} {[%emt 00:13:40]} 20.
Be2 {[%clk 00:27:58]} {[%emt 00:04:49]} Qe1 {[%clk 00:21:24]} {[%emt 00:10:23]}
21. Bf4 {[%clk 00:26:23]} {[%emt 00:02:04]} Bxc4 {[%clk 00:19:50]} {[%emt
00:02:05]} 22. Qe4+ {[%clk 00:26:09]} {[%emt 00:00:44]} Kd5 {[%emt 00:00:11]}
1-0